[Event "*** Titled Tuesday 3|2 Blitz"]
[Site "Chess.com"]
[Date "2016.03.01"]
[Round "3"]
[White "DagurR"]
[Black "AdrianaNikolova"]
[Result "1-0"]
[WhiteElo "2277"]
[BlackElo "2146"]
[TimeControl "180+2"]
[EndTime "12:06:47 PST"]
[Termination "DagurR won by resignation"]

1. d4 {[%clk 0:02:54.3]} 1... Nf6 {[%clk 0:02:59.1]} 2. c4 {[%clk 0:02:55.1]}
2... e6 {[%clk 0:02:59.8]} 3. Nc3 {[%clk 0:02:54.8]} 3... Bb4 {[%clk 0:03:00.8]}
4. e3 {[%clk 0:02:55.8]} 4... O-O {[%clk 0:02:58]} 5. Nf3 {[%clk 0:02:56]} 5...
d5 {[%clk 0:02:59.2]} 6. Bd3 {[%clk 0:02:56.4]} 6... c5 {[%clk 0:03:00.7]} 7.
O-O {[%clk 0:02:56.8]} 7... Nc6 {[%clk 0:03:01.7]} 8. dxc5 {[%clk 0:02:56.5]}
8... dxc4 {[%clk 0:02:55.2]} 9. Bxc4 {[%clk 0:02:55.1]} 9... Bxc3 {[%clk
0:02:54]} 10. bxc3 {[%clk 0:02:53.1]} 10... Qa5 {[%clk 0:02:55.4]} 11. Bb3
{[%clk 0:02:38.8]} 11... Qxc3 {[%clk 0:02:45.5]} 12. Ba3 {[%clk 0:02:36.9]}
12... Rd8 {[%clk 0:02:26.5]} 13. Qc1 {[%clk 0:02:37]} 13... Qxc1 {[%clk
0:01:56.2]} 14. Raxc1 {[%clk 0:02:38.9]} 14... Bd7 {[%clk 0:01:57.5]} 15. Rb1
{[%clk 0:02:16.6]} 15... Na5 {[%clk 0:01:53.3]} 16. Nd4 {[%clk 0:02:00.3]} 16...
e5 {[%clk 0:01:21.3]} 17. Nf3 {[%clk 0:02:01]} 17... Re8 {[%clk 0:01:10.8]} 18.
Bb2 {[%clk 0:01:48.7]} 18... Nxb3 {[%clk 0:00:52.7]} 19. axb3 {[%clk 0:01:50.6]}
19... Bb5 {[%clk 0:00:48.4]} 20. Rfd1 {[%clk 0:01:51.3]} 20... e4 {[%clk
0:00:38]} 21. Nd4 {[%clk 0:01:35.2]} 21... Bd3 {[%clk 0:00:39]} 22. Rbc1 {[%clk
0:01:36.8]} 22... Nd5 {[%clk 0:00:30.8]} 23. Nf5 {[%clk 0:01:34.7]} 23... g6
{[%clk 0:00:24.8]} 24. Nd6 {[%clk 0:01:12.2]} 24... Re7 {[%clk 0:00:25.9]} 25.
Ba3 {[%clk 0:00:58.7]} 25... f5 {[%clk 0:00:26.1]} 26. b4 {[%clk 0:00:52.9]}
26... Rd7 {[%clk 0:00:24.7]} 27. b5 {[%clk 0:00:52.9]} 27... a6 {[%clk
0:00:24.8]} 28. c6 {[%clk 0:00:54.2]} 28... bxc6 {[%clk 0:00:26.7]} 29. bxc6
{[%clk 0:00:55.6]} 29... Rc7 {[%clk 0:00:28.3]} 30. Nb7 {[%clk 0:00:45.8]} 30...
Ne7 {[%clk 0:00:28.1]} 31. Na5 {[%clk 0:00:46.9]} 31... Rac8 {[%clk 0:00:26.8]}
32. Bd6 {[%clk 0:00:47.8]} 32... Kf7 {[%clk 0:00:25.9]} 33. Bxc7 {[%clk
0:00:48.6]} 33... Rxc7 {[%clk 0:00:27.8]} 34. f3 {[%clk 0:00:50.3]} 34... Ke6
{[%clk 0:00:28.8]} 35. Kf2 {[%clk 0:00:37.4]} 35... Nd5 {[%clk 0:00:29.1]} 36.
Nb7 {[%clk 0:00:35.9]} 36... Nb4 {[%clk 0:00:28.2]} 37. Rd2 {[%clk 0:00:29.2]}
37... Ke7 {[%clk 0:00:27.2]} 38. Rb2 {[%clk 0:00:30.2]} 38... Nxc6 {[%clk
0:00:27.2]} 39. Na5 {[%clk 0:00:31]} 39... Kd6 {[%clk 0:00:24.8]} 40. Nxc6
{[%clk 0:00:31.4]} 40... Rxc6 {[%clk 0:00:26.7]} 41. Rxc6+ {[%clk 0:00:32.6]}
41... Kxc6 {[%clk 0:00:28.6]} 42. fxe4 {[%clk 0:00:34.3]} 42... fxe4 {[%clk
0:00:29.4]} 43. Rb8 {[%clk 0:00:35.9]} 43... a5 {[%clk 0:00:30.7]} 44. Rh8
{[%clk 0:00:37.2]} 44... a4 {[%clk 0:00:31.7]} 45. Rxh7 {[%clk 0:00:38]} 45...
Kb6 {[%clk 0:00:32.4]} 46. Rh8 {[%clk 0:00:37.7]} 46... Ba6 {[%clk 0:00:31.2]}
47. Rb8+ {[%clk 0:00:38.2]} 47... Bb7 {[%clk 0:00:32.4]} 48. Rd8 {[%clk
0:00:39.5]} 48... a3 {[%clk 0:00:32.1]} 49. Rd1 {[%clk 0:00:40]} 49... a2 {[%clk
0:00:32.7]} 50. Ra1 {[%clk 0:00:41.2]} 50... Bd5 {[%clk 0:00:33.5]} 51. Kg3
{[%clk 0:00:42.1]} 51... Kc5 {[%clk 0:00:35]} 52. Kf4 {[%clk 0:00:43.7]} 52...
Kb4 {[%clk 0:00:36.6]} 53. Kg5 {[%clk 0:00:45.4]} 53... Kc3 {[%clk 0:00:37.3]}
54. Kxg6 {[%clk 0:00:46.7]} 54... Kd3 {[%clk 0:00:37.2]} 55. h4 {[%clk
0:00:46.9]} 55... Kxe3 {[%clk 0:00:38.6]} 56. h5 {[%clk 0:00:48.6]} 56... Kd2
{[%clk 0:00:39.2]} 57. h6 {[%clk 0:00:49.5]} 57... e3 {[%clk 0:00:40.7]} 58. h7
{[%clk 0:00:50.6]} 58... e2 {[%clk 0:00:42]} 59. h8=Q {[%clk 0:00:51.7]} 59...
Be4+ {[%clk 0:00:40.1]} 60. Kg5 {[%clk 0:00:51]} 60... Bb1 {[%clk 0:00:42]} 61.
Qb2+ {[%clk 0:00:51.5]} 61... Kd1 {[%clk 0:00:41]} 62. Rxb1+ {[%clk 0:00:52.3]}
62... axb1=Q {[%clk 0:00:42.9]} 63. Qxb1+ {[%clk 0:00:53.7]} 63... Kd2 {[%clk
0:00:44.8]} 64. g4 {[%clk 0:00:53.9]} 64... e1=Q {[%clk 0:00:45.8]} 65. Qxe1+
{[%clk 0:00:55.2]} 65... Kxe1 {[%clk 0:00:47.7]} 66. Kf5 {[%clk 0:00:56.9]} 1-0

[Event "*** Titled Tuesday 3|2 Blitz"]
[Site "Chess.com"]
[Date "2016.03.01"]
[Round "3"]
[White "Izoria123"]
[Black "FairChess_on_YouTube"]
[Result "0-1"]
[WhiteElo "2546"]
[BlackElo "2726"]
[TimeControl "180+2"]
[EndTime "12:07:00 PST"]
[Termination "FairChess_on_YouTube won on time"]

1. d4 {[%clk 0:01:27.1]} 1... d5 {[%clk 0:02:59.9]} 2. Nf3 {[%clk 0:01:26.5]}
2... Nf6 {[%clk 0:03:00.3]} 3. c4 {[%clk 0:01:28.2]} 3... c6 {[%clk 0:03:01.1]}
4. cxd5 {[%clk 0:01:26.7]} 4... cxd5 {[%clk 0:03:02.1]} 5. Nc3 {[%clk
0:01:28.5]} 5... Nc6 {[%clk 0:03:02.6]} 6. Bf4 {[%clk 0:01:29.6]} 6... a6 {[%clk
0:03:02.5]} 7. Rc1 {[%clk 0:01:28.9]} 7... Bf5 {[%clk 0:02:54.5]} 8. e3 {[%clk
0:01:29.5]} 8... e6 {[%clk 0:02:47.8]} 9. Be2 {[%clk 0:01:31.1]} 9... Nd7 {[%clk
0:02:46.7]} 10. O-O {[%clk 0:01:30]} 10... Be7 {[%clk 0:02:47.6]} 11. h3 {[%clk
0:01:21.7]} 11... O-O {[%clk 0:02:47]} 12. Na4 {[%clk 0:01:19.5]} 12... Rc8
{[%clk 0:02:44.6]} 13. a3 {[%clk 0:01:18.5]} 13... b5 {[%clk 0:02:39.1]} 14. Nc5
{[%clk 0:01:15.9]} 14... Nxc5 {[%clk 0:02:40.1]} 15. dxc5 {[%clk 0:01:16.9]}
15... Bf6 {[%clk 0:02:41.6]} 16. Qd2 {[%clk 0:01:10.9]} 16... e5 {[%clk
0:02:38.7]} 17. Bg3 {[%clk 0:01:11.1]} 17... Be6 {[%clk 0:02:32]} 18. b4 {[%clk
0:01:10.2]} 18... Qe7 {[%clk 0:02:31.2]} 19. a4 {[%clk 0:01:06.5]} 19... Qb7
{[%clk 0:02:27.1]} 20. axb5 {[%clk 0:01:07.3]} 20... axb5 {[%clk 0:02:28.5]} 21.
Rb1 {[%clk 0:00:41.6]} 21... Rfd8 {[%clk 0:02:28]} 22. Rfd1 {[%clk 0:00:40.5]}
22... Ra8 {[%clk 0:02:19.6]} 23. Bh4 {[%clk 0:00:32.2]} 23... Bxh4 {[%clk
0:02:05.7]} 24. Nxh4 {[%clk 0:00:34.1]} 24... e4 {[%clk 0:02:07.3]} 25. f4
{[%clk 0:00:27.6]} 25... d4 {[%clk 0:02:07.4]} 26. f5 {[%clk 0:00:23.2]} 26...
Ba2 {[%clk 0:01:41.9]} 27. Rb2 {[%clk 0:00:19.9]} 27... Bc4 {[%clk 0:01:41.4]}
28. f6 {[%clk 0:00:07.9]} 28... Ra3 {[%clk 0:01:37.7]} 29. exd4 {[%clk 0:00:08]}
29... e3 {[%clk 0:01:37.4]} 30. Qe1 {[%clk 0:00:09.2]} 30... Nxd4 {[%clk
0:01:33.2]} 31. Bxc4 {[%clk 0:00:09.7]} 31... bxc4 {[%clk 0:01:33.6]} 32. Qg3
{[%clk 0:00:09.2]} 32... g6 {[%clk 0:01:30]} 33. Rxd4 {[%clk 0:00:10.2]} 33...
Rxd4 {[%clk 0:01:27.8]} 34. Nf5 {[%clk 0:00:11.4]} 34... Rd8 {[%clk 0:00:59.4]}
35. Ne7+ {[%clk 0:00:09.9]} 35... Kh8 {[%clk 0:00:56.4]} 36. c6 {[%clk
0:00:11.4]} 36... Qa7 {[%clk 0:00:40.6]} 37. c7 {[%clk 0:00:12]} 37... e2+
{[%clk 0:00:39.7]} 38. Kh2 {[%clk 0:00:13.4]} 38... Rf8 {[%clk 0:00:38.4]} 39.
Qd6 {[%clk 0:00:13.7]} 39... Qxc7 {[%clk 0:00:27.6]} 40. Qxc7 {[%clk 0:00:13.9]}
40... e1=Q {[%clk 0:00:28.5]} 41. Qd6 {[%clk 0:00:13.8]} 41... Re8 {[%clk
0:00:24.8]} 42. b5 {[%clk 0:00:14.3]} 42... Rd3 {[%clk 0:00:23]} 43. Qf4 {[%clk
0:00:14.2]} 43... c3 {[%clk 0:00:23.9]} 44. Rc2 {[%clk 0:00:11.9]} 44... Qe3
{[%clk 0:00:21.5]} 45. Qc7 {[%clk 0:00:07.5]} 45... Qd4 {[%clk 0:00:20.3]} 46.
b6 {[%clk 0:00:06.5]} 46... Qxf6 {[%clk 0:00:16.9]} 47. b7 {[%clk 0:00:07.7]}
47... Kg7 {[%clk 0:00:13.4]} 48. Nc6 {[%clk 0:00:06.7]} 48... Rd6 {[%clk
0:00:14.5]} 49. b8=Q {[%clk 0:00:03.8]} 49... Qf4+ {[%clk 0:00:15.5]} 50. g3
{[%clk 0:00:05.3]} 50... Rd2+ {[%clk 0:00:16.2]} 51. Rxd2 {[%clk 0:00:06.2]}
51... Qxd2+ {[%clk 0:00:17.3]} 0-1

[Event "*** Titled Tuesday 3|2 Blitz"]
[Site "Chess.com"]
[Date "2016.03.01"]
[Round "3"]
[White "KNVB"]
[Black "Smirnov_Pavel"]
[Result "1-0"]
[WhiteElo "2364"]
[BlackElo "2499"]
[TimeControl "180+2"]
[EndTime "12:07:26 PST"]
[Termination "KNVB won by resignation"]

1. d4 {[%clk 0:03:01.9]} 1... d5 {[%clk 0:02:59.9]} 2. c4 {[%clk 0:02:59]} 2...
e6 {[%clk 0:03:00.8]} 3. Nc3 {[%clk 0:02:58.7]} 3... c6 {[%clk 0:03:01.7]} 4. e3
{[%clk 0:02:55.9]} 4... Nf6 {[%clk 0:02:59.1]} 5. Nf3 {[%clk 0:02:55.9]} 5...
Nbd7 {[%clk 0:02:59.8]} 6. Qc2 {[%clk 0:02:54.4]} 6... Bd6 {[%clk 0:02:59.5]} 7.
b3 {[%clk 0:02:51.6]} 7... O-O {[%clk 0:02:59.3]} 8. Bb2 {[%clk 0:02:49]} 8...
Qe7 {[%clk 0:02:59.2]} 9. Be2 {[%clk 0:02:42.7]} 9... b6 {[%clk 0:02:59.4]} 10.
O-O {[%clk 0:02:40.2]} 10... Bb7 {[%clk 0:02:59.8]} 11. Bd3 {[%clk 0:02:33.9]}
11... dxc4 {[%clk 0:02:58.5]} 12. bxc4 {[%clk 0:02:32.2]} 12... c5 {[%clk
0:02:59.4]} 13. d5 {[%clk 0:02:07.5]} 13... Ne5 {[%clk 0:02:52.3]} 14. Nxe5
{[%clk 0:01:45.6]} 14... Bxe5 {[%clk 0:02:53.3]} 15. e4 {[%clk 0:01:46.9]} 15...
exd5 {[%clk 0:02:38.9]} 16. exd5 {[%clk 0:01:22.1]} 16... Qc7 {[%clk 0:02:30.4]}
17. h3 {[%clk 0:01:15.6]} 17... a6 {[%clk 0:02:29.9]} 18. a4 {[%clk 0:01:13.7]}
18... Rfe8 {[%clk 0:02:29.1]} 19. Rfe1 {[%clk 0:01:14.3]} 19... h6 {[%clk
0:02:27.4]} 20. Re2 {[%clk 0:01:12.6]} 20... Bd4 {[%clk 0:02:26.2]} 21. Rae1
{[%clk 0:01:04.8]} 21... Rxe2 {[%clk 0:02:23.1]} 22. Nxe2 {[%clk 0:00:56.2]}
22... Bxb2 {[%clk 0:02:22.9]} 23. Qxb2 {[%clk 0:00:58.1]} 23... Re8 {[%clk
0:02:23.4]} 24. Rb1 {[%clk 0:00:59.2]} 24... Nd7 {[%clk 0:02:16.7]} 25. a5
{[%clk 0:00:58.6]} 25... Ne5 {[%clk 0:02:02.1]} 26. axb6 {[%clk 0:00:46.1]}
26... Qd6 {[%clk 0:02:02.3]} 27. Qc3 {[%clk 0:00:35.7]} 27... Rb8 {[%clk
0:02:01.3]} 28. Bc2 {[%clk 0:00:28.1]} 28... Bc8 {[%clk 0:01:59.4]} 29. Ng3
{[%clk 0:00:29]} 29... f6 {[%clk 0:01:11.3]} 30. Ne4 {[%clk 0:00:25.1]} 30...
Qf8 {[%clk 0:01:09.6]} 31. Qe3 {[%clk 0:00:09.3]} 31... Nxc4 {[%clk 0:01:07.8]}
32. Qxc5 {[%clk 0:00:10.6]} 32... Qxc5 {[%clk 0:01:06.9]} 33. Nxc5 {[%clk
0:00:12.5]} 33... Rxb6 {[%clk 0:01:04.2]} 34. Rxb6 {[%clk 0:00:08.2]} 34... Nxb6
{[%clk 0:01:05.2]} 35. d6 {[%clk 0:00:07.8]} 35... Kf8 {[%clk 0:00:32.6]} 36.
Ba4 {[%clk 0:00:05.7]} 36... Nxa4 {[%clk 0:00:19.1]} 37. Nxa4 {[%clk 0:00:07.6]}
37... a5 {[%clk 0:00:12.8]} 38. Kf1 {[%clk 0:00:05.5]} 38... Kf7 {[%clk
0:00:13.3]} 39. Nc5 {[%clk 0:00:06.4]} 39... Ke8 {[%clk 0:00:11.8]} 40. Ke1
{[%clk 0:00:06.8]} 40... Bf5 {[%clk 0:00:11.8]} 41. Kd2 {[%clk 0:00:07]} 41...
g5 {[%clk 0:00:10.1]} 42. Kc3 {[%clk 0:00:05.6]} 42... h5 {[%clk 0:00:10.6]} 43.
Kb3 {[%clk 0:00:04.9]} 43... h4 {[%clk 0:00:11.8]} 44. Ka4 {[%clk 0:00:05]}
44... g4 {[%clk 0:00:11]} 45. hxg4 {[%clk 0:00:05.6]} 45... Bxg4 {[%clk
0:00:12.2]} 46. Kxa5 {[%clk 0:00:07.2]} 46... f5 {[%clk 0:00:13]} 47. Kb6 {[%clk
0:00:08]} 47... f4 {[%clk 0:00:14]} 48. f3 {[%clk 0:00:05.7]} 48... Bf5 {[%clk
0:00:11.7]} 49. Kc7 {[%clk 0:00:06.8]} 49... h3 {[%clk 0:00:10.6]} 50. gxh3
{[%clk 0:00:07.8]} 50... Bxh3 {[%clk 0:00:11.7]} 51. d7+ {[%clk 0:00:09.1]}
51... Bxd7 {[%clk 0:00:12.7]} 52. Nxd7 {[%clk 0:00:11]} 52... Ke7 {[%clk
0:00:14]} 53. Kc6 {[%clk 0:00:12.2]} 53... Ke6 {[%clk 0:00:15]} 54. Nb6 {[%clk
0:00:07.2]} 54... Ke5 {[%clk 0:00:15.8]} 55. Kc5 {[%clk 0:00:08.9]} 55... Kf5
{[%clk 0:00:16.2]} 56. Kd4 {[%clk 0:00:10.5]} 56... Kg5 {[%clk 0:00:17.2]} 57.
Ke4 {[%clk 0:00:12.4]} 1-0

[Event "*** Titled Tuesday 3|2 Blitz"]
[Site "Chess.com"]
[Date "2016.03.01"]
[Round "3"]
[White "Yaacovn"]
[Black "LuckyTiger"]
[Result "1-0"]
[WhiteElo "2636"]
[BlackElo "2574"]
[TimeControl "180+2"]
[EndTime "12:07:31 PST"]
[Termination "Yaacovn won by resignation"]

1. d4 {[%clk 0:03:01.9]} 1... Nf6 {[%clk 0:03:01.4]} 2. Nf3 {[%clk 0:03:03]}
2... c5 {[%clk 0:03:00.3]} 3. c3 {[%clk 0:03:04.4]} 3... e6 {[%clk 0:02:59.4]}
4. Bf4 {[%clk 0:03:05.1]} 4... b6 {[%clk 0:02:58.4]} 5. e3 {[%clk 0:03:06.6]}
5... Bb7 {[%clk 0:02:59.9]} 6. Nbd2 {[%clk 0:03:08.2]} 6... Be7 {[%clk
0:02:57.4]} 7. Bd3 {[%clk 0:03:09.3]} 7... Nh5 {[%clk 0:02:45.8]} 8. Bxb8 {[%clk
0:03:08.2]} 8... Rxb8 {[%clk 0:02:45]} 9. O-O {[%clk 0:03:09.9]} 9... Nf6 {[%clk
0:02:42.3]} 10. Qe2 {[%clk 0:03:10.5]} 10... O-O {[%clk 0:02:39.4]} 11. Ba6
{[%clk 0:03:11.1]} 11... Ba8 {[%clk 0:02:38.6]} 12. a4 {[%clk 0:03:11.6]} 12...
d6 {[%clk 0:02:37.4]} 13. b4 {[%clk 0:03:10.6]} 13... Nd5 {[%clk 0:02:35.7]} 14.
bxc5 {[%clk 0:03:07.3]} 14... dxc5 {[%clk 0:02:35.8]} 15. Rfc1 {[%clk
0:03:08.3]} 15... Qc7 {[%clk 0:02:31]} 16. Rab1 {[%clk 0:03:04.7]} 16... Rfd8
{[%clk 0:02:25.4]} 17. h3 {[%clk 0:03:03.8]} 17... h6 {[%clk 0:02:22.1]} 18. Ne5
{[%clk 0:03:02.4]} 18... Bf6 {[%clk 0:02:17.8]} 19. Ng4 {[%clk 0:03:01.4]} 19...
Be7 {[%clk 0:02:17.9]} 20. Ne5 {[%clk 0:03:02.7]} 20... Bf6 {[%clk 0:02:18]} 21.
Ng4 {[%clk 0:03:00.6]} 21... Be7 {[%clk 0:02:19.3]} 22. Bd3 {[%clk 0:02:50.1]}
22... Rbc8 {[%clk 0:02:14.6]} 23. Ba6 {[%clk 0:02:46.1]} 23... Rb8 {[%clk
0:02:13.9]} 24. Nf3 {[%clk 0:02:45.5]} 24... Nf6 {[%clk 0:02:08.1]} 25. Nxf6+
{[%clk 0:02:42.2]} 25... Bxf6 {[%clk 0:02:10]} 26. Ne1 {[%clk 0:02:24.1]} 26...
e5 {[%clk 0:02:05.8]} 27. Nf3 {[%clk 0:02:16.3]} 27... Qe7 {[%clk 0:01:55.2]}
28. dxe5 {[%clk 0:02:12.7]} 28... Bxe5 {[%clk 0:01:57.1]} 29. Bc4 {[%clk
0:01:41.4]} 29... Bf6 {[%clk 0:01:53.1]} 30. Qc2 {[%clk 0:01:39.3]} 30... Be4
{[%clk 0:01:51.2]} 31. Qb3 {[%clk 0:01:40.6]} 31... Bxb1 {[%clk 0:01:51.7]} 32.
Rxb1 {[%clk 0:01:42.5]} 32... Rd6 {[%clk 0:01:39.4]} 33. Re1 {[%clk 0:01:43]}
33... Rd7 {[%clk 0:01:14]} 34. e4 {[%clk 0:01:44.3]} 34... Be5 {[%clk
0:01:14.8]} 35. g3 {[%clk 0:01:40.3]} 35... Re8 {[%clk 0:01:12.8]} 36. Kg2
{[%clk 0:01:41.1]} 36... Qf6 {[%clk 0:01:11.6]} 37. Bb5 {[%clk 0:01:41]} 37...
Red8 {[%clk 0:01:02.3]} 38. Bxd7 {[%clk 0:01:41.7]} 38... Rxd7 {[%clk
0:01:04.2]} 39. Qc4 {[%clk 0:01:28.6]} 39... Re7 {[%clk 0:00:57.9]} 40. Re3
{[%clk 0:01:27.2]} 40... g6 {[%clk 0:00:57.4]} 41. h4 {[%clk 0:01:28.2]} 41...
Qe6 {[%clk 0:00:55.1]} 42. Qd5 {[%clk 0:01:25.9]} 42... Bg7 {[%clk 0:00:44.4]}
43. c4 {[%clk 0:01:24.7]} 43... Qc8 {[%clk 0:00:35.8]} 44. Rd3 {[%clk
0:01:23.7]} 44... Qe8 {[%clk 0:00:36.1]} 45. h5 {[%clk 0:01:15.9]} 45... g5
{[%clk 0:00:32]} 46. Re3 {[%clk 0:01:08.9]} 46... Qxa4 {[%clk 0:00:32.3]} 47. e5
{[%clk 0:01:09.2]} 47... Qd7 {[%clk 0:00:30.8]} 48. Qe4 {[%clk 0:01:06]} 48...
Qb7 {[%clk 0:00:30.2]} 49. Qd5 {[%clk 0:01:02]} 49... Rd7 {[%clk 0:00:28.3]} 50.
Qxb7 {[%clk 0:00:58]} 50... Rxb7 {[%clk 0:00:30.2]} 51. Nh2 {[%clk 0:00:58.6]}
51... Rd7 {[%clk 0:00:28.2]} 52. f4 {[%clk 0:00:58.3]} 52... gxf4 {[%clk
0:00:27.1]} 53. gxf4 {[%clk 0:01:00.2]} 53... Rd4 {[%clk 0:00:26.2]} 54. Kf3
{[%clk 0:01:00.8]} 54... Rxc4 {[%clk 0:00:26.4]} 55. Ra3 {[%clk 0:01:02.1]}
55... a5 {[%clk 0:00:26.7]} 56. Ng4 {[%clk 0:01:00.3]} 56... a4 {[%clk
0:00:25.6]} 57. f5 {[%clk 0:00:59.2]} 57... b5 {[%clk 0:00:22.4]} 58. f6 {[%clk
0:01:00.3]} 58... Bf8 {[%clk 0:00:23.6]} 59. Ne3 {[%clk 0:01:00.3]} 59... Rh4
{[%clk 0:00:23.1]} 60. Rd3 {[%clk 0:00:58.9]} 60... Rd4 {[%clk 0:00:22.8]} 61.
Rc3 {[%clk 0:00:57.5]} 61... c4 {[%clk 0:00:21.6]} 62. Rc2 {[%clk 0:00:56.9]}
62... a3 {[%clk 0:00:21.3]} 63. Nf5 {[%clk 0:00:58.4]} 63... Rd3+ {[%clk
0:00:13.3]} 64. Ke4 {[%clk 0:00:59.8]} 64... Rh3 {[%clk 0:00:13]} 65. Rd2 {[%clk
0:00:56.1]} 65... Rxh5 {[%clk 0:00:12.6]} 66. Rd8 {[%clk 0:00:56]} 66... Rxf5
{[%clk 0:00:08.7]} 67. Kxf5 {[%clk 0:00:57.9]} 67... b4 {[%clk 0:00:09.9]} 68.
Ra8 {[%clk 0:00:59.1]} 68... c3 {[%clk 0:00:10.7]} 69. e6 {[%clk 0:01:00.6]}
69... fxe6+ {[%clk 0:00:11.9]} 70. Kg6 {[%clk 0:01:02.1]} 70... a2 {[%clk
0:00:09.8]} 71. f7+ {[%clk 0:01:03.7]} 1-0